fUSD/lending_fUSD_20240505
["ID","MTS","AMOUNT","RATE_DAILY","PERIOD"]
[326458297,1714938638134,-1852.42,0.00010731,2]
[326458298,1714938638143,-334.25,0.00010872,2]
[326458299,1714938638152,-166.43,0.0001096,2]
[326458300,1714938638162,-166.43,0.0001096,2]
[326458301,1714938638171,-166.43,0.0001096,2]
[326458302,1714938638180,-200.0,0.00010974,2]
[326458303,1714938638189,-750.17982827,0.00011,2]
[326458304,1714938638199,-207.8230925,0.00011,2]
[326458305,1714938638208,-329.08,0.00011178,2]
[326458306,1714938638217,-150.0,0.00011271,2]
[326458307,1714938638228,-3992.06059689,0.000118,2]
[326458308,1714938638237,-1000.0,0.00012,2]
[326458309,1714938638246,-334.25,0.00012231,2]
[326458310,1714938638255,-1800.0,0.000124,4]
[326458311,1714938638265,-165.91,0.00012423,2]
[326458312,1714938638274,-13507.44,0.00012467,2]
[326458313,1714938638283,-2700.0,0.000125,4]
[326458314,1714938638293,-3600.0,0.000126,4]
[326458315,1714938638302,-166.43,0.0001269,2]
[326458316,1714938638312,-4500.0,0.000127,4]
[326458317,1714938638321,-186.05909183,0.000128,2]
[326458318,1714938638330,-900.0,0.000128,4]
[326458319,1714938638340,-153.21957809,0.000128,2]
[326458320,1714938638349,-315.93618776,0.000128,2]
[326458321,1714938638358,-938.54879163,0.000128,2]
[326458322,1714938638367,-170.15707166,0.000128,2]
[326458323,1714938638376,-249.70873008,0.000128,2]
[326458324,1714938638385,-404.90420459,0.000128,2]
[326458325,1714938638394,-285.50016341,0.000128,2]
[326458326,1714938638403,-186.05909183,0.0001285,2]
[326458327,1714938638412,-166.43,0.0001289,2]
[326458328,1714938638422,-166.43,0.0001289,2]
[326458329,1714938638431,-166.43,0.0001289,2]
[326458330,1714938638441,-166.43,0.0001289,2]
[326458331,1714938638450,-3245526.31399855,0.000129,2]
[326458332,1714938638463,-1027704.55799199,0.000129,2]
[326458333,1714938638475,-316.62,0.000129,2]
[326458334,1714938638486,-1629.68005117,0.000129,2]
[326458335,1714938638497,-433.12615998,0.000129,2]
[326458336,1714938638728,-2199.76057497,0.000129,2]
[326458337,1714938638743,-28633.03765267,0.000129,2]
[326458338,1714938639838,-675.23513532,9.922e-05,2]
[326458339,1714938639863,-324.76486468,9.922e-05,2]
[326458340,1714938639872,-739.59746019,0.00011163,2]
[326458341,1714938640004,-260.40253981,0.00011163,2]
[326458342,1714938640013,-1000.0,0.00012403,2]
[326458344,1714938640023,-496758.23988153,0.000129,2]
[326458346,1714938640050,-243681.7016897,0.000129,2]
[326458347,1714938640061,-804.29,0.000129,2]
[326458348,1714938640072,-5717.55732685,0.000129,2]
[326458349,1714938640084,-4855.09641126,0.000129,2]
[326458350,1714938640103,-468.67992952,0.000129,2]
[326458351,1714938640116,-1058.52056441,0.000129,2]
[326458352,1714938640143,-785.284434,0.000129,2]
[326458353,1714938640155,-694.27363026,0.000129,2]
[326458354,1714938640166,-367.81239946,0.000129,2]
[326458355,1714938640191,-5713.1099006,0.000129,2]
[326458356,1714938640202,-471.20191416,0.000129,2]
[326458366,1714938642725,-178536.30539347,0.000129,2]
[326458367,1714938642775,-7446.6,0.000129,2]
[326458368,1714938642880,-17048.7806318,0.000129,2]
[326458369,1714938642895,-23724.07198122,0.000129,2]
[326458377,1714938645740,-1200.0,0.00012899,2]
[326458378,1714938645753,-949.26000002,0.00012899,2]
[326458379,1714938645766,-3116.20284763,0.00012899,2]
[326458380,1714938645776,-159632.93036951,0.000129,2]
[326458381,1714938645797,-115197.41274425,0.000129,2]
[326458382,1714938645811,-94120.82378235,0.000129,2]
[326458389,1714938653143,8485.3444583,6.94e-05,2]
[326458390,1714938653168,225615.59463638,6.94e-05,2]
[326458394,1714938726025,-788.18220101,0.00011607,2]
[326458395,1714938726058,-219.17485625,0.00011607,2]
[326458396,1714938726079,-735.28588548,0.00011607,2]
[326458397,1714938726089,-52.89631553,0.00011608,2]
[326458398,1714938726100,-697.28351274,0.00011608,2]
[326458399,1714938726110,-257.17722899,0.00012251,2]
[326458402,1714938801943,-533.77884656,9.998e-05,2]
[326458403,1714938801971,-533.77884656,9.998e-05,2]
[326458404,1714938801986,-847.44230688,9.998e-05,2]
[326458405,1714938839490,-358.86409618,9.998e-05,2]
[326458406,1714938872015,-1900.0,9.997e-05,2]
[326458407,1714938905437,-155.0,9.994e-05,2]
[326458408,1714938905470,-155.0,9.995e-05,2]
[326458409,1714938905523,-940.0,9.996e-05,2]
[326458410,1714938992096,-155.0,8.843e-05,2]
[326458411,1714938992127,-181.46,8.844e-05,2]
[326458412,1714938992157,-707.48452441,9.99e-05,2]
[326458413,1714938992188,-161.73293461,9.99e-05,2]
[326458414,1714938992219,-155.0,9.991e-05,2]
[326458415,1714938992328,-978.64508196,9.991e-05,2]
[326458417,1714939071711,-155.0,9.985e-05,2]
[326458418,1714939071743,-2363.11334746,9.985e-05,2]
[326458419,1714939071774,-2993.39564086,9.985e-05,2]
[326458420,1714939071833,-1276.98202336,9.985e-05,2]
[326458421,1714939124041,-5500.0,9.959e-05,2]
[326458423,1714939479898,-1246.19492949,8.765e-05,2]
[326458424,1714939479922,-5553.55999122,8.766e-05,2]
[326458425,1714939479943,-487.99073708,8.766e-05,2]
[326458426,1714939479966,-1920.81381058,8.767e-05,2]
[326458427,1714939479989,-954.46074173,8.767e-05,2]
[326458428,1714939480013,-1786.4162258,8.767e-05,2]
[326458429,1714939480036,-5265.46284765,8.767e-05,2]
[326458430,1714939480060,-1786.4162258,8.767e-05,2]
[326458431,1714939480084,-1786.4162258,8.767e-05,2]
[326458432,1714939480111,-2123.58,8.768e-05,2]
[326458433,1714939480134,-167.58743393,8.851e-05,2]
[326458434,1714939480156,-601.0,8.851e-05,2]
[326458435,1714939480181,-4419.3719452,8.852e-05,2]
[326458436,1714939480204,-22795.71490822,8.852e-05,2]
[326458437,1714939480228,-4735.28114911,8.853e-05,2]
[326458438,1714939480250,-6926.48166076,8.854e-05,2]
[326458439,1714939480274,-250.0,8.855e-05,2]
[326458440,1714939480298,-308.14,8.934e-05,2]
[326458441,1714939480321,-423.1768076,8.963e-05,2]
[326458442,1714939480345,-150.0,9.041e-05,2]
[326458443,1714939480370,-150.0,9.041e-05,2]
[326458444,1714939480393,-162.58,9.045e-05,2]
[326458445,1714939480419,-198.0,9.168e-05,2]
[326458446,1714939480442,-1008.02308185,9.611e-05,2]
[326458447,1714939480466,-200.0,9.612e-05,2]
[326458448,1714939480491,-6100.33127818,9.645e-05,2]
[326458449,1714939512935,-405.26692787,8.962e-05,2]
[326458450,1714939512960,-383.05538099,8.963e-05,2]
[326458451,1714939512984,-954.46074173,9.527e-05,2]
[326458452,1714939513010,-1257.21694941,9.645e-05,2]
[326458473,1714939831737,-954.46074173,8.166e-05,2]
[326458474,1714939831746,-217.0207066,8.167e-05,2]
[326458475,1714939831755,-155.0,8.168e-05,2]
[326458476,1714939831765,-60.08819254,8.168e-05,2]
[326458477,1714939831935,-107.49924139,8.168e-05,2]
[326458478,1714939831945,-1518.10153836,8.168e-05,2]
[326458479,1714939831956,-268.31468744,8.168e-05,2]
[326458480,1714939831965,-181.72238556,8.169e-05,2]
[326458481,1714939831975,-308.14008547,8.169e-05,2]
[326458504,1714939832331,-48.79528918,8.169e-05,2]
[326458505,1714939832340,-3997.94193176,8.169e-05,2]
[326458506,1714939832354,-1267.52091589,8.169e-05,2]
[326458507,1714939832364,-200.58003302,8.17e-05,2]
[326458508,1714939832373,-1484.66905109,8.17e-05,2]
[326458509,1714939832385,-888.36762147,8.17e-05,2]
[326458510,1714939832396,-499.72856,8.17e-05,2]
[326458511,1714939832409,-1987.29412416,8.17e-05,2]
[326458512,1714939832424,-352.57230805,8.17e-05,2]
[326458513,1714939832434,-2218.37398119,8.17e-05,2]
[326458514,1714939832443,-487.99073708,8.171e-05,2]
[326458515,1714939832453,-1246.19492949,8.171e-05,2]
[326458516,1714939832463,-240.15,8.172e-05,2]
[326458517,1714939832472,-1581.94604419,8.208e-05,2]
[326458518,1714939832486,-2837.42590101,8.208e-05,2]
[326458519,1714939832495,-1985.26409899,8.209e-05,2]
[326458520,1714939832509,-400.0,8.209e-05,2]
[326458521,1714939832524,-3168.29589223,8.209e-05,2]
[326458522,1714939832533,-4735.28114911,8.209e-05,2]
[326458523,1714939832542,-23900.0,8.21e-05,2]
[326458524,1714939832551,-377.35579036,8.388e-05,2]
[326458525,1714939832560,-19464.25004522,8.388e-05,2]
[326458526,1714939832569,-200.0,8.393e-05,2]
[326458527,1714939832578,-1000.0,8.669e-05,2]
[326458528,1714939832588,-150.0,8.799e-05,2]
[326458529,1714939832597,-150.0,8.799e-05,2]
[326458530,1714939832606,-1852.42,8.808e-05,2]
[326458531,1714939832615,-9467.73832695,8.854e-05,2]
[326458532,1714939832624,-16459.59,8.855e-05,2]
[326458533,1714939832633,-157.51,8.881e-05,2]
[326458534,1714939832643,-2653.15,8.915e-05,2]
[326458535,1714939832652,-157.51,8.947e-05,2]
[326458536,1714939832662,-4478.65101805,8.96e-05,2]
[326458537,1714939832672,-157.51,9.013e-05,2]
[326458538,1714939832681,-157.51,9.079e-05,2]
[326458539,1714939832690,-157.51,9.145e-05,2]
[326458540,1714939832699,-240.15,9.193e-05,2]
[326458541,1714939832708,-157.51,9.212e-05,2]
[326458542,1714939832717,-157.51,9.278e-05,2]
[326458543,1714939832726,-329.08,9.285e-05,2]
[326458544,1714939832735,-157.51,9.344e-05,2]
[326458545,1714939832744,-175.3,9.356e-05,2]
[326458546,1714939832753,-1037.38,9.642e-05,2]
[326458547,1714939832762,-317.32899014,9.643e-05,2]
[326458548,1714939832771,-281768.472893,9.644e-05,2]
[326458549,1714939832802,-13440.13964338,9.644e-05,2]
[326458550,1714939832813,-24202.18642409,9.644e-05,2]
[326458555,1714939837807,-367664.68978582,9.644e-05,2]
[326458556,1714939837816,-53971.25040641,9.645e-05,2]
[326458557,1714939837825,-361.66236523,9.645e-05,2]
[326458558,1714939837834,-20193.97145337,9.645e-05,2]
[326458559,1714939837843,-159.57152392,9.645e-05,2]
[326458560,1714939837852,-838.33,9.67e-05,2]
[326458561,1714939837861,-14235.93,9.67e-05,2]
[326458562,1714939837870,-301.98,9.67e-05,2]
[326458563,1714939837879,-299.99,9.67e-05,2]
[326458564,1714939837888,-150.99,9.67e-05,2]
[326458565,1714939837897,-499.99,9.67e-05,2]
[326458566,1714939837906,-282.62,9.67e-05,2]
[326458567,1714939837915,-210.0,9.678e-05,2]
[326458568,1714939837924,-210.0,9.678e-05,2]
[326458569,1714939837933,-6850.58,9.731e-05,2]
[326458570,1714939837942,-1621.377,9.731e-05,2]
[326458571,1714939837951,-1000.0,9.753e-05,2]
[326458572,1714939837960,-14504.93687252,9.929e-05,2]
[326458573,1714939837969,-116102.0804,9.931e-05,2]
[326458574,1714939837979,-399.42482649,9.959e-05,2]
[326458575,1714939837989,-302.41440776,9.961e-05,2]
[326458576,1714939837999,-4688.93845827,9.988e-05,2]
[326458577,1714939838008,-873.67660905,9.994e-05,2]
[326458578,1714939838016,-369.89957834,0.0001,2]
[326458579,1714939838026,-512.93708357,0.0001,2]
[326458580,1714939838035,-788.18220101,0.0001,2]
[326458581,1714939838045,-208.17791052,0.0001,2]
[326458582,1714939838054,-155.0,0.0001,2]
[326458583,1714939838063,-324.27594836,0.0001,2]
[326458584,1714939838072,-900.0,0.0001,3]
[326458585,1714939838082,-3038.17806797,0.0001002,2]
[326458586,1714939838091,-178.66688519,0.00010028,2]
[326458587,1714939838100,-1113.42308911,0.00010029,2]
[326458588,1714939838109,-431.87161872,0.00010029,2]
[326458589,1714939838119,-527.60952804,0.00010029,2]
[326458590,1714939838128,-240.15,0.00010215,2]
[326458591,1714939838137,-159.57152389,0.00010356,2]
[326458592,1714939838147,-162.58,0.00010553,2]
[326458593,1714939838156,-293.0,0.00010646,2]
[326458595,1714939838165,-1000.0,0.00010836,2]
[326458597,1714939838454,-150.0,0.00010959,2]
[326458598,1714939838469,-166.43,0.0001096,2]
[326458599,1714939838479,-166.43,0.0001096,2]
[326458600,1714939838488,-166.43,0.0001096,2]
[326458601,1714939838499,-166.43,0.0001096,2]
[326458602,1714939838509,-750.17982827,0.00011,2]
[326458603,1714939838518,-207.8230925,0.00011,2]
[326458604,1714939838528,-4335.24,0.0001103,2]
[326458605,1714939838537,-4335.24,0.00011033,2]
[326458606,1714939838546,-4335.24,0.00011036,2]
[326458607,1714939838555,-4335.24,0.00011039,2]
[326458608,1714939838564,-4335.24,0.00011042,2]
[326458609,1714939838573,-4335.24,0.00011045,2]
[326458610,1714939838582,-4335.24,0.00011048,2]
[326458611,1714939838591,-4335.24,0.00011051,2]
[326458612,1714939838601,-4335.24,0.00011054,2]
[326458613,1714939838610,-4335.24,0.00011056,2]
[326458614,1714939838619,-4335.24,0.00011059,2]
[326458615,1714939838628,-4335.24,0.00011062,2]
[326458616,1714939838637,-301.74364809,0.00011065,2]
[326458617,1714939838647,-4335.24,0.00011065,2]
[326458618,1714939838656,-1296.6111286,0.00011068,2]
[326458619,1714939838665,-2184.31716652,0.00011068,2]
[326458620,1714939838674,-4335.24,0.00011068,2]
[326458621,1714939838683,-4335.24,0.00011071,2]
[326458622,1714939838692,-4335.24,0.00011074,2]
[326458623,1714939838701,-4335.24,0.00011077,2]
[326458624,1714939838710,-4335.24,0.0001108,2]
[326458625,1714939838719,-4335.24,0.00011083,2]
[326458626,1714939838728,-4335.24,0.00011085,2]
[326458627,1714939838737,-159.57152389,0.00011166,2]
[326458628,1714939838747,-240.15,0.00011236,2]
[326458629,1714939838757,-165.92,0.00011401,2]
[326458630,1714939838766,-1089.6264,0.00011507,2]
[326458631,1714939838775,-16459.59,0.00011595,2]
[326458632,1714939838784,-3302.39169194,0.00011605,2]
[326458633,1714939838794,-250.5802228,0.00011608,2]
[326458634,1714939838803,-1000.0,0.0001192,2]
[326458635,1714939838812,-159.57152389,0.00011977,2]
[326458636,1714939838821,-1000.0,0.00012,2]
[326458637,1714939838830,-162.58,0.00012061,2]
[326458638,1714939838839,-150.31,0.00012084,2]
[326458639,1714939838848,-298.47108253,0.00012251,2]
[326458640,1714939838858,-826.31832366,0.00012251,2]
[326458641,1714939838867,-313.86825992,0.00012253,2]
[326458642,1714939838876,-240.15,0.00012257,2]
[326458643,1714939838885,-1800.0,0.000124,4]
[326458644,1714939838894,-2700.0,0.000125,4]
[326458645,1714939838903,-3600.0,0.000126,4]
[326458646,1714939838912,-3499.0404575,0.00012616,2]
[326458647,1714939838922,-4500.0,0.000127,4]
[326458648,1714939838931,-251.74141407,0.00012749,2]
[326458649,1714939838940,-156.5,0.0001278,2]
[326458650,1714939838949,-171.44839952,0.00012787,2]
[326458651,1714939838958,-159.57152389,0.00012787,2]
[326458652,1714939838967,-938.54879163,0.00012787,2]
[326458653,1714939838976,-201.02497945,0.00012787,2]
[326458654,1714939838986,-4963.74871088,0.00012787,2]
[326458655,1714939838996,-900.0,0.000128,4]
[326458656,1714939839004,-171.44839951,0.0001281,2]
[326458657,1714939839014,-1560.96410363,0.00012827,2]
[326458658,1714939839023,-171.44839951,0.00012832,2]
[326458659,1714939839032,-171.44839951,0.00012855,2]
[326458660,1714939839042,-3078.44148882,0.00012868,2]
[326458661,1714939839051,-156.66830836,0.00012868,2]
[326458662,1714939839060,-207.8230925,0.0001287,2]
[326458663,1714939839070,-166.43,0.0001287,2]
[326458664,1714939839079,-166.43,0.0001287,2]
[326458665,1714939839089,-166.43,0.0001287,2]
[326458666,1714939839098,-166.43,0.0001287,2]
[326458667,1714939839108,-298.24596846,0.00012877,2]
[326458668,1714939839117,-155.49081521,0.00012877,2]
[326458669,1714939839126,-171.44839951,0.00012877,2]
[326458670,1714939839136,-155.11003247,0.00012878,2]
[326458671,1714939839145,-407.0825661,0.00012878,2]
[326458672,1714939839155,-155.0,0.00012878,2]
[326458673,1714939839164,-167.52842248,0.00012878,2]
[326458674,1714939839174,-6345.0,0.00012878,2]
[326458675,1714939839184,-179.43818815,0.00012878,2]
[326458676,1714939839195,-155.35175922,0.00012878,2]
[326458677,1714939839207,-155.38655138,0.00012878,2]
[326458678,1714939839216,-924.25022326,0.00012878,2]
[326458679,1714939839226,-155.0,0.00012878,2]
[326458680,1714939839238,-155.33018241,0.00012878,2]
[326458681,1714939839249,-225.22975691,0.00012878,2]
[326458682,1714939839258,-162.68520801,0.00012878,2]
[326458683,1714939839268,-155.19087031,0.00012878,2]
[326458684,1714939839280,-155.16353772,0.00012878,2]
[326458685,1714939839291,-155.1119593,0.00012878,2]
[326458686,1714939839301,-155.0,0.00012878,2]
[326458687,1714939839310,-209.1400429,0.00012878,2]
[326458688,1714939839324,-203.43366109,0.00012878,2]
[326458689,1714939839333,-288.75014512,0.00012878,2]
[326458690,1714939839342,-292.02311045,0.00012878,2]
[326458691,1714939839352,-236.51827636,0.00012878,2]
[326458692,1714939839362,-197.75134148,0.00012878,2]
[326458693,1714939839371,-155.09732717,0.00012878,2]
[326458695,1714939839382,-155.18316179,0.00012878,2]
[326458696,1714939839391,-156.60468047,0.00012878,2]
[326458697,1714939839401,-249.73515181,0.00012878,2]
[326458698,1714939839410,-194.47654533,0.00012878,2]
[326458699,1714939839419,-275.56606053,0.00012878,2]
[326458700,1714939839428,-162.07402568,0.00012878,2]
[326458701,1714939839437,-212.27868082,0.00012878,2]
[326458702,1714939839447,-155.7977596,0.00012878,2]
[326458703,1714939839456,-156.44597604,0.00012878,2]
[326458704,1714939839466,-155.0,0.00012878,2]
[326458705,1714939839476,-155.0,0.00012878,2]
[326458706,1714939839485,-319.57717507,0.00012878,2]
[326458707,1714939839494,-207.88378701,0.00012878,2]
[326458708,1714939839504,-245.56779934,0.00012878,2]
[326458709,1714939839513,-155.0,0.00012878,2]
[326458710,1714939839523,-155.93762568,0.00012878,2]
[326458711,1714939839533,-613.40550781,0.00012878,2]
[326458712,1714939839542,-221.38179025,0.00012878,2]
[326458713,1714939839551,-1097.73873464,0.00012878,2]
[326458714,1714939839561,-280.20983083,0.00012878,2]
[326458716,1714939839570,-155.0,0.00012878,2]
[326458718,1714939839580,-502.49206932,0.00012878,2]
[326458719,1714939839590,-155.0,0.00012878,2]
[326458720,1714939839600,-277.42267596,0.00012878,2]
[326458721,1714939839609,-409.87779782,0.00012878,2]
[326458722,1714939839619,-1286.80766227,0.00012878,2]
[326458724,1714939839628,-309.60510547,0.00012878,2]
[326458725,1714939839638,-156.61524721,0.00012878,2]
[326458727,1714939839647,-411.075635,0.00012878,2]
[326458728,1714939839657,-215.71570748,0.00012878,2]
[326458729,1714939839667,-246.90183447,0.00012878,2]
[326458730,1714939839677,-176.79431136,0.00012878,2]
[326458731,1714939839687,-522.4711403,0.00012878,2]
[326458732,1714939839696,-250.16105857,0.00012878,2]
[326458733,1714939839705,-166.20572849,0.00012878,2]
[326458734,1714939839715,-155.1400394,0.00012878,2]
[326458735,1714939839725,-538.39787254,0.00012878,2]
[326458736,1714939839734,-156.71009128,0.00012878,2]
[326458737,1714939839744,-187.2372491,0.00012878,2]
[326458738,1714939839753,-329.09070981,0.00012878,2]
[326458739,1714939839763,-194.77048018,0.00012878,2]
[326458740,1714939839772,-155.06922645,0.00012878,2]
[326458741,1714939839781,-308.67547698,0.00012878,2]
[326458742,1714939839790,-168.99163345,0.00012878,2]
[326458743,1714939839800,-1021.43275486,0.00012878,2]
[326458744,1714939839809,-189.31901344,0.00012878,2]
[326458745,1714939839818,-242.84324257,0.00012878,2]
[326458746,1714939839827,-159.87286893,0.00012878,2]
[326458747,1714939839836,-601.40929028,0.00012878,2]
[326458748,1714939839845,-155.60661784,0.00012878,2]
[326458749,1714939839854,-750.99973579,0.00012879,2]
[326458750,1714939839863,-3114885.25684782,0.0001288,2]
[326458751,1714939839909,-1027704.55799199,0.0001288,2]
[326458752,1714939839932,-34853.30758099,0.0001288,2]
[326458753,1714939839943,-353.33450113,0.0001288,2]
[326458754,1714939839955,-938.90327815,0.0001288,2]
[326458755,1714939840002,-646.28503229,0.0001288,2]
[326458756,1714939840024,-424.88308538,0.0001288,2]
[326458757,1714939840058,-283.43058592,0.0001288,2]
[326458763,1714939840889,-331.59819633,9.643e-05,2]
[326458764,1714939840901,-914.18604342,9.643e-05,2]
[326458765,1714939840911,-1216.73224075,0.0001288,2]
[326458766,1714939840934,-646.8996,0.0001288,2]
[326458767,1714939840945,-640.01,0.0001288,2]
[326458768,1714939841006,-90637.27124592,0.0001288,2]
[326458769,1714939841053,-793.76737349,0.00012887,2]
[326458770,1714939841062,-4374.2502568,0.00012888,2]
[326458771,1714939841073,-781.43297457,0.00012898,2]
[326458772,1714939841082,-202.77419609,0.00012898,2]
[326458773,1714939841091,-265.77308436,0.00012898,2]
[326458774,1714939841102,-155.0,0.00012898,2]
[326458775,1714939841112,-315.06810533,0.00012898,2]
[326458776,1714939841122,-3278.12915811,0.00012898,2]
[326458777,1714939841131,-571.91938651,0.00012898,7]
[326458778,1714939841140,-782.13638794,0.00012898,2]
[326458779,1714939841150,-867.13607682,0.00012898,2]
[326458780,1714939841159,-239.52005028,0.00012898,2]
[326458781,1714939841168,-1076.98006265,0.00012899,3]
[326458782,1714939841177,-35291.5975136,0.00012899,2]
[326458783,1714939841187,-1791170.46090232,0.000129,2]
[326458784,1714939841201,-2000.0,0.000129,2]
[326458785,1714939841211,-200.0,0.000129,2]
[326458786,1714939841221,-171.44839951,0.000129,2]
[326458787,1714939841235,-2000.0,0.000129,2]
[326458788,1714939841247,-200.0,0.000129,2]
[326458789,1714939841258,-200.0,0.000129,2]
[326458790,1714939841268,-900.0,0.000129,4]
[326458791,1714939841279,-432.30421582,0.000129,2]
[326458792,1714939841288,-432.3042158,0.000129,2]
[326458793,1714939841298,-432.3042158,0.000129,2]
[326458794,1714939841308,-432.3042158,0.000129,2]
[326458795,1714939841317,-432.3042158,0.000129,2]
[326458796,1714939841328,-432.3042158,0.000129,2]
[326458797,1714939841337,-432.3042158,0.000129,2]
[326458798,1714939841346,-432.3042158,0.000129,2]
[326458799,1714939841356,-3000.0,0.000129,2]
[326458800,1714939841365,-1076.98006265,0.00012999,3]
[326458801,1714939841374,-80138.0,0.00013,2]
[326458802,1714939841384,-3102731.10180748,0.00013,2]
[326458803,1714939841393,-151.0,0.00013,2]
[326458804,1714939841402,-151.0,0.00013,2]
[326458805,1714939841411,-151.0,0.00013,2]
[326458806,1714939841421,-151.0,0.00013,2]
[326458807,1714939841430,-151.0,0.00013,2]
[326458808,1714939841439,-151.0,0.00013,2]
[326458809,1714939841448,-151.0,0.00013,2]
[326458810,1714939841457,-283.264101,0.00013,2]
[326458811,1714939841466,-151.0,0.00013,2]
[326458812,1714939841482,-151.0,0.00013,2]
[326458813,1714939841491,-151.0,0.00013,2]
[326458814,1714939841502,-151.0,0.00013,2]
[326458815,1714939841511,-151.0,0.00013,2]
[326458816,1714939841519,-151.0,0.00013,2]
[326458817,1714939841529,-151.0,0.00013,2]
[326458818,1714939841538,-151.0,0.00013,2]
[326458819,1714939841548,-151.0,0.00013,2]
[326458820,1714939841558,-151.0,0.00013,2]
[326458821,1714939841567,-151.0,0.00013,2]
[326458822,1714939841576,-151.0,0.00013,2]
[326458823,1714939841585,-151.0,0.00013,2]
[326458824,1714939841594,-171.372256,0.00013,2]
[326458825,1714939841603,-171.372256,0.00013,2]
[326458826,1714939841612,-151.0,0.00013,2]
[326458827,1714939841621,-151.0,0.00013,2]
[326458828,1714939841630,-151.0,0.00013,2]
[326458829,1714939841639,-161.130341,0.00013,2]
[326458830,1714939841650,-151.0,0.00013,2]
[326458831,1714939841658,-151.0,0.00013,2]
[326458832,1714939841667,-151.0,0.00013,2]
[326458833,1714939841676,-151.0,0.00013,2]
[326458834,1714939841685,-151.0,0.00013,2]
[326458835,1714939841694,-151.0,0.00013,2]
[326458836,1714939841703,-268.908124,0.00013,2]
[326458837,1714939841712,-151.0,0.00013,2]
[326458838,1714939841722,-151.0,0.00013,2]
[326458839,1714939841731,-285.04402,0.00013,2]
[326458840,1714939841741,-285.04402,0.00013,2]
[326458841,1714939841752,-151.0,0.00013,2]
[326458842,1714939841761,-151.0,0.00013,2]
[326458843,1714939841771,-450.0,0.00013,2]
[326458844,1714939841780,-151.0,0.00013,2]
[326458845,1714939841792,-450.0,0.00013,2]
[326458846,1714939841801,-151.0,0.00013,2]
[326458847,1714939841810,-151.0,0.00013,2]
[326458848,1714939841819,-151.0,0.00013,2]
[326458849,1714939841828,-151.0,0.00013,2]
[326458850,1714939841837,-151.0,0.00013,2]
[326458851,1714939841847,-151.0,0.00013,2]
[326458852,1714939841856,-151.0,0.00013,2]
[326458853,1714939841866,-151.0,0.00013,2]
[326458854,1714939841875,-151.0,0.00013,2]
[326458855,1714939841884,-151.0,0.00013,2]
[326458856,1714939841894,-151.0,0.00013,2]
[326458857,1714939841904,-151.0,0.00013,2]
[326458858,1714939841913,-264.29468,0.00013,2]
[326458859,1714939841923,-151.0,0.00013,2]
[326458860,1714939841933,-264.29468,0.00013,2]
[326458861,1714939841943,-151.0,0.00013,2]
[326458862,1714939841952,-209.071652,0.00013,2]
[326458863,1714939841964,-151.0,0.00013,2]
[326458864,1714939841975,-209.071652,0.00013,2]
[326458865,1714939841984,-151.0,0.00013,2]
[326458866,1714939841996,-151.0,0.00013,2]
[326458867,1714939842008,-151.0,0.00013,2]
[326458868,1714939842016,-151.0,0.00013,2]
[326458869,1714939842026,-151.0,0.00013,2]
[326458870,1714939842034,-151.0,0.00013,2]
[326458871,1714939842043,-151.0,0.00013,2]
[326458872,1714939842053,-151.0,0.00013,2]
[326458873,1714939842063,-151.0,0.00013,2]
[326458874,1714939842072,-151.0,0.00013,2]
[326458875,1714939842083,-151.0,0.00013,2]
[326458876,1714939842092,-151.0,0.00013,2]
[326458877,1714939842103,-151.0,0.00013,2]
[326458878,1714939842112,-844.718222,0.00013,2]
[326458879,1714939842121,-844.718222,0.00013,2]
[326458880,1714939842131,-151.0,0.00013,2]
[326458881,1714939842367,-1287.677464,0.00013,2]
[326458882,1714939842376,-1287.677464,0.00013,2]
[326458883,1714939842386,-202.028961,0.00013,2]
[326458884,1714939842396,-202.028961,0.00013,2]
[326458885,1714939842405,-177.806004,0.00013,2]